Cogmind - Beta 15 @@@ ROGUE MODE // 2025.05.23 @ 23:05:21 Player: gorb Result: Destroyed by S-10 Pest with Light Assault Rifle Performance ------------- Evolutions (1) 500 Regions Visited (2) 400 Robots Destroyed (22) 110 Value Destroyed (422) 422 Prototype IDs (0) 0 Alien Tech Used (0) 0 Bonus (0) 0 TOTAL SCORE: 1432 Bonus ------- None Cogmind --------- Core Integrity 0/400 Matter 200/300 Energy 99/100 System Corruption 0% Temperature Cool (0) Movement Core (250) Ox4 Location -9/Materials Parts ------- > --- POWER (1) -------- (None) > --- PROPULSION (4) --- (None) > --- UTILITY (2) ------ Medium Storage Unit Visual Processing Unit > --- WEAPON (2) ------- Light Assault Rifle Hammer > --- INVENTORY (10) --- Ion Engine Small Storage Unit Medium Laser Peak State ------------ > --- POWER ------------ Ion Engine > --- PROPULSION ------- Aluminum Leg Aluminum Leg Aluminum Leg Aluminum Leg > --- UTILITY ---------- Small Storage Unit Visual Processing Unit > --- WEAPON ----------- Assault Rifle Light Assault Rifle > --- INVENTORY -------- Ion Engine Medium Laser Light Assault Rifle Hammer [Rating: 10] Favorites ----------- Power Ion Engine Engine Ion Engine Propulsion Aluminum Leg Leg Aluminum Leg Wheel Compact Wheel Utility Visual Processing Unit Storage Small Storage Unit Processor Visual Processing Unit Weapon Light Assault Rifle Ballistic Gun Light Assault Rifle Impact Weapon Hammer Build | -11 -10 -9 ------- Run | Yrd Mat Mat Slots Evolved 2 | . . 2 Power . | . . . Propulsion 2 | . . 2 Utility . | . . . Weapon . | . . . Parts Attached 14 | 5 3 6 Power 1 | 1 . . Engine 1 | 1 . . Core . | . . . Reactor . | . . . Propulsion 6 | 2 1 3 Treads . | . . . Leg 4 | . 1 3 Wheel 2 | 2 . . Hover . | . . . Flight . | . . . Utility 3 | 1 1 1 Device . | . . . Storage 2 | 1 . 1 Processor 1 | . 1 . Hackware . | . . . Protection . | . . . Artifact . | . . . Weapon 4 | 1 1 2 Energy Gun . | . . . Energy Cannon . | . . . Ballistic Gun 3 | 1 1 1 Ballistic Cannon . | . . . Launcher . | . . . Special Weapon . | . . . Impact Weapon 1 | . . 1 Slashing Weapon . | . . . Piercing Weapon . | . . . Special Melee Weapon . | . . . Unidentified Prototypes . | . . . Parts Lost 8 | . 1 7 Power 1 | . . 1 Propulsion 5 | . 1 4 Utility . | . . . Weapon 2 | . . 2 Highest Loss Streak 7 | . 1 7 To Critical Strikes . | . . . Average Backups 5 | 3 6 4 Power 1 | 1 1 1 Propulsion 1 | 1 2 . Utility . | . . . Weapon 2 | 1 2 2 Tool/Special . | . . . Unused Backups 2 | . . 2 Power 1 | . . 1 Propulsion . | . . . Utility . | . . . Weapon 1 | . . 1 Tool/Special . | . . . Average Slot Usage (%) 87 | . 90 84 Engine 10 | . 14 7 Leg 21 | . 6 34 Wheel 10 | . 21 . Storage 12 | . 14 11 Processor 8 | . 5 11 Ballistic Gun 22 | . 28 17 Peak Build Rating 10 | 5 8 10 Average Rating 7 | 3 6 8 On Entrance 4 | . 5 8 Naked Turns . | . . . Heaviest Build 18 | 11 13 18 Greatest Support 40 | 26 26 40 Greatest Overweight (x) 1 | 1 1 . Average Overweight (x) . | . . . Largest Inventory Capacity 10 | 8 8 10 Average Capacity 8 | 7 8 9 Most Carried 8 | 5 8 7 Average Carried 5 | 4 6 4 Final Capacity 10 | 8 8 10 Final Carried 7 | 5 7 3 Class Distribution -------------------- 100% | Mutant Dominant Class ---------------- Mutant | -10/Materials Mutant | -9/Materials Resources | -11 -10 -9 ----------- Run | Yrd Mat Mat Matter Collected 365 | 258 76 31 Remotely . | . . . Salvage Created 527 | 35 157 335 Parts 43 | 5 13 25 Haulers Intercepted . | . . . Recyclers Shooed 1 | . 1 . Parts Field Recycled . | . . . Retrieved Matter . | . . . Parts Self-Destructed . | . . . Prevented . | . . . Kills | -11 -10 -9 ------- Run | Yrd Mat Mat Combat Hostiles Destroyed 17 | . 3 14 Melee 1 | . . 1 Guns 16 | . 3 13 Classes Destroyed 5 | 1 2 2 Tunneler 2 | 2 . . Watcher 3 | . 2 1 Swarmer 10 | . . 10 Grunt 5 | . 3 2 Sentry 2 | . . 2 Best Kill Streak 13 | 2 4 13 Combat Bots Only 12 | . 3 12 Max Kills in Single Turn 1 | 1 1 1 Gunslinging . | . . . Exploded . | . . . Melee 1 | . . 1 Uniques/NPCs Destroyed . | . . . Combat | -11 -10 -9 -------- Run | Yrd Mat Mat Hostile Shots Fired 147 | . 23 124 Missed 29 | . 3 26 Hits 118 | . 20 98 Projectile 118 | . 20 98 Critical Strikes 2 | . . 2 Damage Taken 1299 | . 221 1078 Core 448 | . 43 405 Absorbed by Shields . | . . . Core Remaining (%) 91 | 100 82 . Volleys Fired 84 | 8 20 56 Largest 2 | 1 2 2 Hottest 40 | 20 40 40 Shots Fired 116 | 8 40 68 Gun 116 | 8 40 68 Cannon . | . . . Launcher . | . . . Special . | . . . Kinetic 116 | 8 40 68 Thermal . | . . . Explosive . | . . . Electromagnetic . | . . . Robot Hit Streak 17 | 2 10 17 Robot Miss Streak 7 | 1 7 3 Penetration Max . | . . . Secondary Targets 4 | . 2 2 Max Gunslinging Chain 1 | . 1 1 Shots Hit Robots 93 | 6 24 63 Core Hits 41 | 4 11 26 Critical Kills . | . . . Critical Parts Destroyed 2 | 1 . 1 Critical Strikes 2 | 1 . 1 Destroy 1 | 1 . . Smash 1 | . . 1 Melee Attacks 11 | . . 11 Impact 11 | . . 11 Slashing . | . . . Piercing . | . . . Sneak Attacks . | . . . Combat Hostiles . | . . . Follow-up Attacks . | . . . Damage Inflicted 1015 | 48 249 718 Guns 770 | 48 248 474 Cannons . | . . . Explosions . | . . . Melee 242 | . . 242 Ramming 3 | . 1 2 Kinetic 770 | 48 248 474 Thermal . | . . . Explosive . | . . . Electromagnetic . | . . . Impact 242 | . . 242 Slashing . | . . . Piercing . | . . . Highest Corruption . | . . . Average Corruption . | . . . Corruption Purged . | . . . Corruption Blocked . | . . . Overload Shots . | . . . Overflow Damage 27 | . . 27 Projectiles . | . . . Explosions . | . . . Melee 27 | . . 27 Knockbacks . | . . . Impact . | . . . Kinetic . | . . . Secondary . | . . . Self-Inflicted Damage . | . . . Shots . | . . . Rammed . | . . . Targets Rammed 2 | . 1 1 Kicked 2 | . 1 1 Crushed . | . . . Highest Temperature 19 | . 18 19 Average Temperature 8 | . 9 7 Received Heat Transfer 357 | . 120 237 Siege Activations . | . . . Martial Activations . | . . . Shielding Activations . | . . . Robots Disrupted . | . . . Combat Hostiles . | . . . Robots Corrupted . | . . . Combat Hostiles . | . . . Parts Fried . | . . . Impact Corruptions 2 | . . 2 Robots Melted . | . . . Combat Hostiles . | . . . Parts Melted . | . . . Heat Transferred . | . . . Parts Sabotaged . | . . . Parts Stolen . | . . . Parts Stripped . | . . . Power Chain Reactions . | . . . Alert | -11 -10 -9 ------- Run | Yrd Mat Mat Maximum Alert Level 1 | . . 1 Low Security (%) 89 | 100 100 78 Level 1 10 | . . 21 Level 2 . | . . . Level 3 . | . . . Level 4 . | . . . Level 5 . | . . . High Security . | . . . Max Security . | . . . Peak Influence 272 | 10 50 272 Initial . | . . . Average 40 | 1 13 73 Influence Increases 545 | 10 89 446 Destroy 0b10 Robot/C 340 | . 60 280 Destroy 0b10 Robot/NC 25 | 10 10 5 Destroy Leader 96 | . 14 82 Successful Hack 9 | . 5 4 Lose Combat Pursuer 75 | . . 75 Influence Decreases 273 | 10 89 174 Time Decay 193 | 10 79 104 Lost Part 80 | . 10 70 Squads Dispatched 3 | . 1 2 Investigation 2 | . 1 1 Extermination . | . . . Reinforcement 1 | . . 1 Assault . | . . . Garrison . | . . . Intercept . | . . . Searches Triggered . | . . . Construction Impeded . | . . . Haulers Reinforced . | . . . Active Scanning Responses . | . . . Cargo Convoy Interrupts . | . . . Stealth | -11 -10 -9 --------- Run | Yrd Mat Mat Distress Signals 2 | . . 2 Communications Jammed . | . . . Distress Signals . | . . . Times Spotted 37 | . 7 30 Peak Tracking Total 15 | . 4 15 Tactical Retreats 2 | . . 2 Traps | -11 -10 -9 ------- Run | Yrd Mat Mat Traps Triggered 1 | . . 1 Indirectly . | . . . Trap Hack Attempts . | . . . Triggered . | . . . Disarmed . | . . . Reprogrammed . | . . . Reused . | . . . Traps Extracted . | . . . Installed . | . . . Triggered . | . . . Machines | -11 -10 -9 ---------- Run | Yrd Mat Mat Machines Disabled . | . . . Max in Single Turn . | . . . Machines Repaired . | . . . Machines Dismantled . | . . . Machines Sabotaged . | . . . Overloaded Fab Kills . | . . . Hacking | -11 -10 -9 --------- Run | Yrd Mat Mat Machines Accessed 5 | . 3 2 Terminals 4 | . 2 2 Fabricators . | . . . Repair Stations . | . . . Recycling Units 1 | . 1 . Scanalyzers . | . . . Garrison Access . | . . . Total Hacks 16 | . 8 8 Successful 5 | . 3 2 Failed 11 | . 5 6 Catastrophic . | . . . Database Lockouts . | . . . Manual 10 | . 5 5 Terminals 13 | . 5 8 Fabricators . | . . . Repair Stations . | . . . Recycling Units 3 | . 3 . Scanalyzers . | . . . Garrison Access . | . . . Terminal Hacks . | . . . Fabricator Hacks . | . . . Repair Station Hacks . | . . . Recycling Unit Hacks 2 | . 2 . Process 1 | . 1 . Retrieve Matter 1 | . 1 . Scanalyzer . | . . . Garrison Access Hacks . | . . . Unauthorized Hacks 3 | . 1 2 Terminals 3 | . 1 2 Botnet 3 | . 1 2 Fabricators . | . . . Repair Stations . | . . . Recycling Units . | . . . Scanalyzers . | . . . Garrison Access . | . . . Data Cores Recovered . | . . . Used . | . . . Hacking Detections 4 | . 2 2 Full Trace Events 2 | . 1 1 Feedback Events . | . . . Feedback Blocked . | . . . Robot Schematics Acquired . | . . . Robots Built . | . . . Authchips . | . . . Time . | . . . Total Robot Build Rating . | . . . Part Schematics Acquired . | . . . Parts Built . | . . . Authchips . | . . . Time . | . . . Total Part Build Rating . | . . . Parts Repaired . | . . . Time . | . . . Parts Recycled . | . . . Recycled Matter 112 | . 112 . Retrieved Matter 112 | . 112 . Retrieved Components . | . . . Parts Scanalyzed . | . . . Part Schematics Acquired . | . . . Parts Damaged . | . . . Bothacking | -11 -10 -9 ------------ Run | Yrd Mat Mat Used RIF Installer . | . . . Robots Hacked . | . . . Non-combat . | . . . Combat . | . . . Robot Hacks Applied . | . . . Relay Couplers Released . | . . . Fabnet Peak Effective % . | . . . Robots Rewired . | . . . Allies Hacked . | . . . Hacks Repelled . | . . . Allies | -11 -10 -9 -------- Run | Yrd Mat Mat Total Allies . | . . . Largest Group . | . . . Highest-Rated Group . | . . . Highest-Rated Ally . | . . . Total Orders . | . . . Ally Attacks . | . . . Total Damage . | . . . Kills . | . . . Allies Corrupted . | . . . Allies Melted . | . . . Intel | -11 -10 -9 ------- Run | Yrd Mat Mat Active Infowar (turns) 478 | . 124 354 Optics 478 | . 124 354 Robot Analysis Total . | . . . Derelict Logs Recovered . | . . . Drone Launches . | . . . Drone Recoveries . | . . . Exploration | -11 -10 -9 ------------- Run | Yrd Mat Mat Turns Passed 745 | 81 310 354 Spaces Moved 398 | 63 175 160 Core 15 | 15 . . Treads . | . . . Legs 224 | . 64 160 Wheels 159 | 48 111 . Hover . | . . . Flight . | . . . Fastest Speed 50 | 50 90 120 Average Speed 117 | 83 126 120 Slowest Speed 190 | 100 190 120 Overloaded Moves . | . . . Propulsion Burnouts . | . . . Robots Hopped . | . . . Potential Cave-ins . | . . . Cave-ins Triggered . | . . . Exploration Rate (%) 18 | 4 35 17 Regions Visited 2 Branch Regions . Pre-discovered Areas . | . . . Known Exits Taken . | . . . Unknown Exits Taken 2 | 1 1 . Scrap Searched . | . . . Spaces Dug . | . . . Terrain Destroyed . | . . . Melee . | . . . Projectile . | . . . AOE . | . . . Terrain Rammed . | . . . Walls Destroyed . | . . . Machines Disabled . | . . . Actions | -11 -10 -9 --------- Run | Yrd Mat Mat Total 557 | 84 226 247 Wait 35 | . 24 11 Move 396 | 62 174 160 Hop . | . . . Pick Up 14 | 9 4 1 Fast Attach 2 | 1 1 . Attach 11 | 4 2 5 Detach . | . . . Swap 1 | . . 1 Drop 1 | . . 1 Fire 84 | 8 20 56 Melee 11 | . . 11 Ram . | . . . Kick 2 | . 1 1 Crush . | . . . Escape Stasis . | . . . Rewire . | . . . Trap . | . . . Miscellaneous . | . . . Route ------- -11/Scrapyard -10/Materials -9/Materials History --------- Turn | Location | Event 33 | -11/Scrapyard | Discovered new exit (range 15) 82 | -11/Scrapyard | Entered Materials 308 | -10/Materials | Build established: Mutant 362 | -10/Materials | Discovered new exit (range 9) 392 | -10/Materials | Entered another Materials area 392 | -9/Materials | Evolved 2 slots: Propulsion x2 701 | -9/Materials | Core integrity fell below 50% 725 | -9/Materials | Destroyed 12 combat bots 735 | -9/Materials | Core integrity fell below 20% 744 | -9/Materials | Lost 7 parts (1p4n2w) 746 | -9/Materials | Destroyed by S-10 Pest with Light Assault Rifle Last Messages --------------- Aluminum Leg destroyed. K-01 Serf collects debris. R-06 Scavenger collects Flight Unit. Critical hit (Burn: +37). K-01 Serf collects debris. Lgt. Assault Rifle destroyed. K-01 Serf collects debris. R-06 Scavenger collects Lgt. Armor Plating. K-01 Serf collects debris. Y-45 Defender heat short circuits Imp. Ion Engine. K-01 Serf cleans the Atomic Centrifuge. Destroyed Lgt. Armor Plating. Y-45 Defender system corrupted by crushing effect. Y-45 Defender destroyed. R-06 Scavenger collects Lgt. Ion Engine. G-34 Mercenary destroyed. R-06 Scavenger collects Heat Sink. K-01 Serf collects debris. Map ----- +----------------------------------------------------+ | ?????????????????????????????????????????????????? | | ?????????????????????????????????????????????????? | | ?????????????????????????????????????????????????? | | ?????????????????????????????????????????????????? | | ?????????????????????????????????????????????????? | | ?????????????????????????????????????????????????? | | ?????????????????????????????????????????????????? | | ?????????????????????????????????????????????????? | | ?????????????????????#???????????????????????????? | | ?????????????????????# ??????????????????????????? | | ?????????????????????# ######????????????????????? | | ?????????????????????# +????????????????????? | | ?????????????????????# #????????????????????? | | ?????????????????????# #????????????????????? | | ?????????????????????? #????????????????????? | | ??????????????????????? /????????????????????? | | ????????????????????????# #????????????????????? | | ????????????????????????# #????????????????????? | | ???????????????????????## ##??????????#####????? | | ??????????? ##+####### o########## #????? | | ??????????? rr #????? | | ??????????? T m +????? | | ???????????? rss #????? | | ????????????????????#### Ygs### ###### #????? | | ??????????????????????####s##### #???????????????? | | ??????????????????????# @kk ## #???????????????? | | ??????????????????????# * ## #???????????????? | | ??????????????????????# % ##+#####???????????? | | ??????????????????????# """ # #???????????? | | ??????????????????????# """ # """ #???????????? | | ??????????????????????# """ # """ #???????????? | | ??????????????????????# # """ #???????????? | | ??????????????????????# """ # #???????????? | | ???????################ """ # #???????????? | | ???????# = ## ??? # #???????????? | | ???????# !== # ???? # """ #???????????? | | ???????# !== ####????## """ #???????????? | | ???????? != ?????????#= """ #???????????? | | ?????????? = ???????????# """ #???????????? | | ???????????? ?????#####???# """ #???????????? | | ???????????###+###????#"""#???# #######?????? | | ???????????# ######"T"########+### #?????? | | ???????????# #?????? | | ???????????# #?????? | | ???????????# #?????? | | ???????????# ##########+########## #?????? | | ??????????####+######## #???????## ######## | | ??????????# #"S T #????????# # !! | | ??????????# """"" #""" #????????# # !! | | ??????????# """"" # "" #?????#### + | +----------------------------------------------------+ Best States ------------- Heat Dissipation 28 Energy Generation 10 Energy Capacity 250 Matter Stores 300 Matter Capacity 300 Sight Range 18 Terrain Scan Density 10 Evasion (%) 55 Item Schematics ----------------- None Robot Schematics ------------------ None Fabricated ------------ Nothing Repaired ---------- Nothing Alien Tech Used ----------------- None Achievements -------------- None Challenges ------------ None Game ------ Seed StormShockReconstructor Manual? 0 Play Time 00:12:40 Cumulative 39.8 hours Start 2025.05.23 @ 21:47:46 End 2025.05.23 @ 23:05:21 Sessions 1 Manual Loads 0 Difficulty Rogue Special Mode None Game No. 66 Rogue 64 Adventurer 0 Explorer 2 Win Type - Total 0 Types 0/0/0/0/0/0/0/0/0/0 Lore% 24 Gallery% 27 Achievement% 28 Wizard Run 0 Options --------- Layout 1 ASCII 0 Keyboard 0 Movement Mouse Keybinds 0 Fullscreen 1 Font 24/Smallcaps Map View 50x35 Zoom Use 0% Tactical HUD 0 Map Filters NONE Filters NONE Steam 1 RUN: 39d581fd-988d-4906-947f-3fe552e1cd45